[Event "US Masters 2024"]
[Site "Charlotte"]
[Date "2024.11.28"]
[Round "1.12"]
[White "Jacobson, Brandon"]
[Black "Chinni, Rishabh"]
[Result "1-0"]
[ECO "E57"]
[WhiteElo "2583"]
[BlackElo "2204"]
[Annotator "TA"]
[PlyCount "63"]
[EventDate "2024.09.23"]
[EventType "swiss"]
[EventCountry "USA"]
[SourceTitle "playchess.com"]
[Source "ChessBase"]
[SourceQuality "1"]
[TimeControl "5400+30"]

{[%evp 24,63,23,8,61,56,91,94,113,107,407,415,393,396,774,860,802,784,840,853,853,850,837,866,866,868,797,664,654,655,750,745,800,778,833,875,841,869,928,952,1040,1029]} 1. d4 {[%emt 0:04:28]} Nf6 {[%emt 0:00:09]} 2. c4 {[%emt 0:00:47]} e6 {[%emt 0:00:08]} 3. Nf3 {[%emt 0:00:43]} d5 {[%emt 0:00:31]} 4. Nc3 {[%emt 0:02:28]} Bb4 {[%emt 0:01:16]} 5. e3 {[%emt 0:01:18]} c5 {[%emt 0:04:39]} 6. Bd3 {[%emt 0:02:26]} Nc6 {[%emt 0:02:31]} 7. O-O {[%emt 0:01:15]} dxc4 {[%emt 0:04:34]} 8. Bxc4 {[%emt 0:01:35]} cxd4 {[%emt 0:00:34]} 9. exd4 {[%emt 0:00:09]} O-O {[%emt 0:00:18]} 10. a3 {[%emt 0:00:39]} Be7 {[%emt 0:01:33]} 11. Re1 {[%emt 0:00:52]} b6 {[%emt 0:03:28]} 12. Qd3 {[%emt 0:08:01]} Bb7 {[%emt 0:02:27]} 13. Ba2 {[%emt 0:00:25]} Qd7 {[%emt 0:07:29]} (13... Qc7 $11) 14. Bg5 {[%emt 0:04:23]} Rfd8 {[%emt 0:04:52]} 15. Rad1 {[%emt 0:01:05] White is more active.} h6 {[%emt 0:07:57] [#] White is better.} 16. Bh4 {[%emt 0:02:45]} g5 $2 {[%emt 0:11:53][%mdl 8192] [#]} (16... Rac8 $16) 17. Bxg5 $1 $18 {[%emt 0:05:35][%mdl 512]} hxg5 {[%emt 0:02:37] [#]} (17... Nxd4 18. Nxd4) 18. Bxe6 $1 {[%emt 0:04:28]} fxe6 {[%emt 0:14:18]} (18... Qe8) 19. Qg6+ {[%emt 0:00:13] White is clearly winning.} Kh8 {[%emt 0:00:59]} 20. Nxg5 {[%emt 0:00:06][%cal Rg5f7]} Qe8 {[%emt 0:01:20]} 21. Nf7+ {[%emt 0:00:57]} Qxf7 {[%emt 0:00:04]} 22. Qxf7 {[%emt 0:00:04] Threatening mate with Rd3.} Rg8 {[%emt 0:01:30]} 23. d5 {[%emt 0:00:17]} Rg7 {[%emt 0:16:26]} 24. Qxe6 {[%emt 0:00:08]} Na5 {[%emt 0:02:25]} 25. Qxe7 {[%emt 0:04:50]} Rxe7 {[%emt 0:00:05]} 26. Rxe7 {[%emt 0:00:04]} Rc8 {[%emt 0:04:02]} 27. d6 {[%emt 0:00:24]} Bc6 {[%emt 0:00:26]} 28. b4 {[%emt 0:00:32]} Nc4 {[%emt 0:01:11]} 29. Rc7 {[%emt 0:00:05]} Bd7 {[%emt 0:01:02]} 30. Nd5 {[%emt 0:00:12]} Nxd5 {[%emt 0:00:36]} 31. Rxd5 {[%emt 0:00:05]} Re8 {[%emt 0:00:32]} 32. h4 {[%emt 0:00:08] Black did not feel at home in the position after the opening.   Weighted Error Value: White=0.26 (precise) /Black=1.14.  Loses game:     	---       	Black=1      Mistake:       	---       	Black=1      Inaccurate:     	---       	Black=1      OK:         	White=2     	Black=1      Best:        	White=2     	Black=1      Strong:       	White=1     	---} (32. Rxc4 $2 Re1#) 1-0

[Event "US Masters 2024"]
[Site "Charlotte"]
[Date "2024.11.28"]
[Round "1.13"]
[White "Dukic, Zachary"]
[Black "Zhou, Jianchao"]
[Result "1/2-1/2"]
[ECO "B48"]
[WhiteElo "2200"]
[BlackElo "2581"]
[Annotator "TA"]
[PlyCount "62"]
[EventDate "2024.09.23"]
[EventType "swiss"]
[EventCountry "USA"]
[SourceTitle "playchess.com"]
[Source "ChessBase"]
[SourceQuality "1"]
[TimeControl "5400+30"]

{[%evp 11,62,38,54,0,14,0,0,0,-14,0,0,0,0,0,0,0,0,0,28,17,29,22,0,0,33,0,0,0,78,73,74,75,73,78,88,91,89,96,113,0,0,0,0,0,0,0,0,0,0,0,0,0,0]} 1. e4 {[%emt 0:02:16]} c5 {[%emt 0:12:34]} 2. Nf3 {[%emt 0:00:26]} e6 {[%emt 0:00:58]} 3. d4 {[%emt 0:00:10]} cxd4 {[%emt 0:00:02]} 4. Nxd4 {[%emt 0:00:09]} Nc6 {[%emt 0:00:05]} 5. Nc3 {[%emt 0:00:09][%cal Bb1c3,Bc3e2,Be2f4][%mdl 32]} Qc7 {[%emt 0:00:02]} 6. Be3 {[%emt 0:00:09]} a6 {[%emt 0:00:03]} 7. g4 {[%emt 0:00:09]} b5 {[%emt 0:00:04][%cal Bb7b5,Bb5b4][%mdl 32]} 8. Nxc6 {[%emt 0:00:07]} Qxc6 {[%emt 0:00:01]} 9. Qd2 {[%emt 0:00:09]} b4 {[%emt 0:00:03]} 10. Ne2 {[%emt 0:00:12]} Qxe4 {[%emt 0:00:05]} 11. Rg1 {[%emt 0:00:07] [#] aiming for Bg2.} Qc4 {[%emt 0:00:04]} 12. Nf4 {[%emt 0:00:19]} Qc7 {[%emt 0:00:15]} 13. O-O-O {[%emt 0:00:10]} Nf6 {[%emt 0:00:05]} 14. Nh5 {[%emt 0:00:07]} Bb7 {[%emt 0:00:04]} (14... Nxh5 $5 15. gxh5 Bb7 $11) 15. Bf4 $36 {[%emt 0:06:50][%mdl 2048] Black is under pressure.} Qc6 {[%emt 0:03:02]} 16. Nxf6+ {[%emt 0:02:18]} gxf6 {[%emt 0:00:19]} 17. g5 {[%emt 0:00:19]} fxg5 {[%emt 0:19:22]} 18. Bxg5 {[%emt 0:03:11] [#] Threatens to win with Bf6.} Rg8 $1 {[%emt 0:11:03]} 19. Bd3 {[%emt 0:02:40]} h6 {[%emt 0:16:36]} 20. Bxh6 $16 {[%emt 0:24:35]} Rxg1 {[%emt 0:00:18]} 21. Rxg1 {[%emt 0:00:09] Black must now prevent Bxf8.} Bxh6 {[%emt 0:00:10]} 22. Qxh6 {[%emt 0:00:09] Strongly threatening Qf6.} O-O-O {[%emt 0:00:11]} 23. Qf6 {[%emt 0:06:43]} a5 {[%emt 0:03:32]} 24. Qxf7 {[%emt 0:03:36] White is more active.} Qd6 {[%emt 0:01:04]} 25. Rg8 {[%emt 0:21:14]} (25. h4 $16 {And now h5 would win.} Qh2 26. Rg4) 25... Qxh2 $11 {[%emt 0:01:50] The position is equal.} 26. Rxd8+ {[%emt 0:00:09]} Kxd8 {[%emt 0:00:04] KQB-KQB} 27. Qf8+ {[%emt 0:00:14]} Kc7 {[%emt 0:00:14]} 28. Qc5+ {[%emt 0:00:11]} Kb8 {[%emt 0:00:09]} 29. Qf8+ {[%emt 0:11:13]} Kc7 {[%emt 0:00:39]} 30. Qc5+ {[%emt 0:00:06]} Kb8 {[%emt 0:00:08]} 31. Qf8+ {[%emt 0:00:05]} Kc7 {[%emt 0:00:08] Weighted Error Value: White=0.09 (flawless) /Black=0.12 (very precise) .  Mistake:       	White=1     	Black=1      Inaccurate:     	White=1     	Black=2      OK:         	White=12    	Black=10     Best:        	White=1     	Black=3      Strong:       	---       	Black=1} 1/2-1/2

[Event "US Masters 2024"]
[Site "Charlotte"]
[Date "2024.11.28"]
[Round "1.14"]
[White "Bruzon Batista, Lazaro"]
[Black "Perez Rodriguez, Jennifer"]
[Result "1-0"]
[ECO "E01"]
[WhiteElo "2578"]
[BlackElo "2193"]
[Annotator "RC"]
[PlyCount "53"]
[EventDate "2024.09.23"]
[EventType "swiss"]
[EventCountry "USA"]
[SourceTitle "playchess.com"]
[Source "ChessBase"]
[SourceQuality "1"]
[TimeControl "5400+30"]

1. c4 {[%emt 0:00:32]} e6 {[%emt 0:00:21]} 2. Nf3 {[%emt 0:00:16]} d5 {[%emt 0:00:05]} 3. g3 {[%emt 0:00:10]} Nf6 {[%emt 0:00:34]} 4. Bg2 {[%emt 0:00:39]} Bd6 {[%emt 0:01:19]} 5. d4 {[%emt 0:01:24]} c6 {[%emt 0:02:35]} 6. O-O {[%emt 0:02:31]} O-O {[%emt 0:00:11]} 7. Nc3 {[%emt 0:00:43]} Nbd7 {[%emt 0:00:58]} 8. Nd2 {[%emt 0:01:00]} Re8 {[%emt 0:07:10]} 9. e4 {[%emt 0:01:34]} dxe4 {[%emt 0:00:34]} 10. Ndxe4 {[%emt 0:00:13]} Nxe4 {[%emt 0:00:23]} 11. Nxe4 {[%emt 0:00:18]} Be7 {[%emt 0:01:56]} 12. Bf4 {[%emt 0:12:59]} Nf6 {[%emt 0:03:58]} 13. c5 {[%emt 0:02:59]} Nd5 {[%emt 0:07:11]} 14. Be5 {[%emt 0:03:35]} f6 {[%emt 0:07:46]} 15. Bd6 {[%emt 0:00:19]} Bxd6 {[%emt 0:02:57]} 16. Nxd6 {[%emt 0:00:12]} Re7 {[%emt 0:00:05]} 17. Re1 {[%emt 0:05:31]} Nc7 {[%emt 0:06:04]} 18. Qb3 {[%emt 0:03:36]} Ne8 {[%emt 0:01:15]} 19. Nxc8 {[%emt 0:02:16]} Qxc8 {[%emt 0:00:05]} 20. d5 {[%emt 0:00:26]} cxd5 {[%emt 0:00:33]} 21. Bxd5 {[%emt 0:00:14]} Kf8 {[%emt 0:12:01]} 22. c6 {[%emt 0:11:54]} bxc6 {[%emt 0:00:55]} 23. Bxe6 {[%emt 0:00:08]} Qb8 {[%emt 0:01:15]} 24. Qc2 {[%emt 0:01:33]} Qd6 {[%emt 0:01:17]} 25. Bb3 {[%emt 0:00:46]} g6 {[%emt 0:07:23]} 26. Qc4 {[%emt 0:02:52]} Qd5 {[%emt 0:08:46]} 27. Rxe7 {[%emt 0:00:46]} 1-0

[Event "US Masters 2024"]
[Site "Charlotte"]
[Date "2024.11.28"]
[Round "1.15"]
[White "Tang, Dylan"]
[Black "Nyzhnyk, Illya"]
[Result "0-1"]
[ECO "B84"]
[WhiteElo "2192"]
[BlackElo "2576"]
[Annotator "TA"]
[PlyCount "140"]
[EventDate "2024.09.23"]
[EventType "swiss"]
[EventCountry "USA"]
[SourceTitle "playchess.com"]
[Source "ChessBase"]
[SourceQuality "1"]
[TimeControl "5400+30"]

{[%evp 14,140,43,56,34,-6,-19,-12,-16,-15,9,8,10,-33,0,0,7,11,42,27,116,144,127,62,39,49,56,50,49,38,46,34,27,46,45,5,0,6,0,-31,-29,-35,-35,-32,-29,-26,0,0,-2,0,-7,0,0,-5,0,0,0,0,0,-38,0,-6,-6,-8,-8,-8,-8,-8,-8,-8,-8,-8,-8,-8,-8,-75,-75,-75,-75,-75,-75,-75,-75,-75,-75,-75,-75,-75,-75,-75,-75,-75,-75,-75,-75,-75,-75,-75,-75,-75,-75,-75,-75,-75,-75,-75,-75,-75,-75,-75,-75,-75,-75,-75,-75,-75,-75,-75,-75,-75,-75,-29979,-29980,-29980,-29981,-29981,-29979,-29997,-29998]} 1. e4 {[%emt 0:00:03]} c5 {[%emt 0:00:13]} 2. Nf3 {[%emt 0:00:16]} d6 {[%emt 0:00:11]} 3. d4 {[%emt 0:00:11]} cxd4 {[%emt 0:00:12]} 4. Nxd4 {[%emt 0:00:34]} Nf6 {[%emt 0:00:07]} 5. Nc3 {[%emt 0:00:11]} a6 {[%emt 0:00:04]} 6. Be2 {[%emt 0:00:05]} e6 {[%emt 0:00:58]} 7. Be3 {[%emt 0:00:50]} Nbd7 {[%emt 0:01:56]} 8. g4 {[%emt 0:06:35]} h6 {[%emt 0:00:57]} 9. Qd2 {[%emt 0:02:08]} b5 {[%emt 0:00:06] White must now prevent ...b4.} 10. a3 {[%emt 0:07:15]} Bb7 {[%emt 0:00:16][%cal Bc8b7,Bb7d5,Bd5c4][%mdl 32] The position is equal.} 11. f3 {[%emt 0:02:09]} Rc8 {[%emt 0:08:36]} 12. O-O-O {[%emt 0:03:14]} d5 {[%emt 0:05:28]} 13. exd5 {[%emt 0:06:02]} (13. h4 $5 e5 14. g5 exd4 15. Bxd4 $17) 13... Nxd5 {[%emt 0:09:35]} (13... Bxd5 $5 14. g5 hxg5 $11) 14. Nxd5 {[%emt 0:00:23]} Bxd5 {[%emt 0:00:04]} 15. Kb1 {[%emt 0:04:37][%cal Oa3a4]} Ne5 {[%emt 0:18:41]} (15... Bc5 $5) 16. Rhe1 {[%emt 0:08:09]} Nc4 {[%emt 0:14:09]} (16... Be7 $11 {keeps the balance.}) 17. Bxc4 $16 {[%emt 0:00:56]} Bxc4 {[%emt 0:00:03] [#]} 18. h4 $1 {[%emt 0:55:52][%mdl 512]} Be7 $14 {[%emt 0:05:24]} 19. g5 {[%emt 0:00:00] Threatens to win with Qg2.} h5 {[%emt 0:00:07]} 20. b3 {[%emt 0:00:00]} Bd5 {[%emt 0:08:52][%cal Oe8g8] [#]} 21. Nf5 $1 {[%emt 0:00:00]} exf5 {[%emt 0:00:05]} 22. Qxd5 {[%emt 0:00:00]} Qxd5 {[%emt 0:00:03]} 23. Rxd5 {[%emt 0:00:00]} O-O {[%emt 0:00:03]} 24. Bc1 {[%emt 0:00:00]} (24. Rxf5 Bxa3 25. Bc1 Bc5 $15) 24... Bc5 {[%emt 0:00:08]} 25. Rxf5 {[%emt 0:00:00]} Bf2 {[%emt 0:00:08][%csl LRe1,LRh4]} 26. Re4 {[%emt 0:00:00]} Rfe8 {[%emt 0:00:22] ...Rxe4 would now be deadly.} 27. Rff4 {[%emt 0:00:00]} Bg3 {[%emt 0:00:06]} 28. Rxe8+ {[%emt 0:00:00]} Rxe8 $15 {[%emt 0:00:03][%mdl 4096] Endgame. KRB-KRB} 29. Rd4 {[%emt 0:00:00]} Bf2 {[%emt 0:00:06]} 30. Rd2 {[%emt 0:00:00]} Bxh4 {[%emt 0:01:14][%cal Oh4g3] aiming for ...Bg3!} 31. Rh2 $1 {[%emt 0:00:00]} Bg3 {[%emt 0:00:05]} 32. Rxh5 {[%emt 0:00:00]} Re1 {[%emt 0:00:05]} 33. Kb2 {[%emt 0:00:00]} Be5+ {[%emt 0:01:49]} 34. c3 $1 {[%emt 0:00:00]} ({But not} 34. Kb1 $2 Bf4 35. g6 fxg6 $19 (35... Bxc1 $2 36. gxf7+ Kxf7 37. Ka2 $19) (35... Rxc1+ $2 36. Kb2 $19)) 34... Re2+ {[%emt 0:00:05]} 35. Kb1 {[%emt 0:00:00]} Bxc3 {[%emt 0:00:03]} 36. Rh3 {[%emt 0:00:00]} f5 {[%emt 0:01:20]} 37. gxf6 {[%emt 0:00:00]} Bxf6 {[%emt 0:00:05]} 38. a4 {[%emt 0:00:00]} Kf7 {[%emt 0:00:11]} 39. Rh5 {[%emt 0:00:00] [#]} g5 $1 {[%emt 0:01:07]} 40. Rh7+ {[%emt 0:01:27]} (40. axb5 axb5) 40... Kg6 {[%emt 0:00:41]} 41. Ra7 {[%emt 0:00:16]} bxa4 {[%emt 0:02:29]} 42. bxa4 {[%emt 0:00:39]} Rf2 {[%emt 0:00:02]} 43. Rxa6 {[%emt 0:00:34] a5 is the strong threat.} Rxf3 {[%emt 0:00:02]} 44. Bxg5 {[%emt 0:00:08]} Kxg5 $11 {[%emt 0:00:04] KRB-KR} 45. Rc6 {[%emt 0:01:20]} Ra3 {[%emt 0:00:09]} 46. Rc4 {[%emt 0:00:06]} Kf5 {[%emt 0:00:03]} 47. Kc2 {[%emt 0:02:51]} Be5 {[%emt 0:00:43]} 48. Rb4 {[%emt 0:00:39]} Ke6 {[%emt 0:00:05]} 49. a5 {[%emt 0:00:34]} Kd5 {[%emt 0:00:41]} 50. Rb5+ {[%emt 0:01:44]} Ke4 {[%emt 0:00:05]} 51. Rc5 {[%emt 0:01:31]} Bd4 {[%emt 0:00:06]} 52. Rb5 {[%emt 0:00:09]} Rc3+ {[%emt 0:00:02]} 53. Kd2 {[%emt 0:00:11]} Rc4 {[%emt 0:00:04]} 54. Rb3 {[%emt 0:01:09]} Ra4 {[%emt 0:00:12]} 55. Rh3 {[%emt 0:01:18]} Ra2+ {[%emt 0:00:09]} (55... Rxa5 56. Kc2 Rb5 57. Rh4+ Ke3 58. Rh3+ Ke2 59. Rh2+ Bf2 60. Kc3) 56. Kc1 {[%emt 0:00:07]} Be3+ {[%emt 0:06:26]} (56... Rxa5 57. Kc2 $19) 57. Kb1 {[%emt 0:00:08]} Rxa5 {[%emt 0:00:07]} 58. Kc2 {[%emt 0:00:15]} Rc5+ {[%emt 0:00:05]} 59. Kb3 {[%emt 0:00:09]} Kd3 {[%emt 0:00:03]} 60. Kb4 {[%emt 0:00:38][%cal Oh3e3]} Rf5 {[%emt 0:00:11]} 61. Rg3 {[%emt 0:00:20]} Rf6 {[%emt 0:00:08]} 62. Ka5 {[%emt 0:00:41]} Re6 {[%emt 0:00:06] ( -> ...Kc4)} 63. Kb5 {[%emt 0:00:41]} Rb6+ {[%emt 0:00:19]} 64. Ka5 {[%emt 0:00:06][%cal Og3e3]} Rb3 {[%emt 0:03:20]} 65. Ka4 {[%emt 0:00:07]} Rb8 {[%emt 0:00:04]} 66. Rh3 {[%emt 0:01:10]} Kc4 {[%emt 0:00:16][%cal Rb8a8]} 67. Ka3 $2 {[%emt 0:01:13][%mdl 8192] This move loses the game for White.} (67. Rh4+ $17 Bd4 68. Rh5 Rb2 69. Rh3 Bf2 70. Rf3 Bc5 71. Rf4+ Bd4 72. Rf3 Rb4+ 73. Ka3 Rb8 74. Ka2 Rb2+ 75. Ka3 Re2 76. Rf4 Re1 77. Rxd4+ Kxd4 78. Kb3 Re2 79. Kb4 Rb2+ 80. Ka4 Kc3 81. Ka5 Kc4 82. Ka6 Kc5 83. Ka7 Kc6 84. Ka8 Kc7 85. Ka7 Ra2#) 67... Bd4 {[%emt 0:06:36][%cal Rb8a8] Black mates.} 68. Ka2 {[%emt 0:00:18]} Rb2+ {[%emt 0:00:03]} 69. Ka3 {[%emt 0:00:07]} Rg2 {[%emt 0:00:30]} 70. Rf3 {[%emt 0:00:16]} Bc5+ {[%emt 0:00:05] Weighted Error Value: White=0.08 (flawless) /Black=0.07 (flawless) .  Loses game:     	White=1     	---        Mistake:       	White=2     	Black=1      Inaccurate:     	White=5     	Black=3      OK:         	White=22    	Black=42     Best:        	White=7     	Black=2      Strong:       	White=2     	---        Brilliant:      	White=1     	---} 0-1

[Event "US Masters 2024"]
[Site "Charlotte"]
[Date "2024.11.28"]
[Round "1.16"]
[White "Krishnakumar, Sriram"]
[Black "Vazquez, Guillermo"]
[Result "1/2-1/2"]
[ECO "B53"]
[WhiteElo "2187"]
[BlackElo "2569"]
[Annotator "TA"]
[PlyCount "56"]
[EventDate "2024.09.23"]
[EventType "swiss"]
[EventCountry "USA"]
[SourceTitle "playchess.com"]
[Source "ChessBase"]
[SourceQuality "1"]
[TimeControl "5400+30"]

{[%evp 9,56,3,0,13,5,0,39,-12,0,0,0,-18,-6,-2,33,31,37,25,32,23,37,15,49,3,17,16,7,0,0,2,2,8,10,-7,-16,-10,0,-8,12,10,10,8,6,6,27,16,36,25,78]} 1. e4 {[%emt 0:00:10]} c5 {[%emt 0:01:26]} 2. Nf3 {[%emt 0:00:18]} d6 {[%emt 0:00:34]} 3. d4 {[%emt 0:00:21]} cxd4 {[%emt 0:00:11]} 4. Qxd4 {[%emt 0:00:29]} Nf6 {[%emt 0:01:34]} 5. c4 {[%emt 0:00:50]} g6 {[%emt 0:03:17]} 6. Nc3 {[%emt 0:02:07]} Bg7 {[%emt 0:00:18]} 7. Be2 {[%emt 0:03:20]} Bg4 {[%emt 0:09:16]} 8. h3 {[%emt 0:10:07]} ({Better is} 8. e5 $14 dxe5 (8... Nc6 9. exf6 Nxd4 10. fxg7 $16) 9. Qxd8+ Kxd8 10. Nxe5 Bxe2 11. Kxe2) 8... Bxf3 $11 {[%emt 0:00:45]} 9. Bxf3 {[%emt 0:00:07] [#] Threatens to win with e5.} Nc6 {[%emt 0:00:46]} 10. Qe3 {[%emt 0:03:30]} O-O {[%emt 0:02:10]} 11. O-O {[%emt 0:02:35]} a5 {[%emt 0:04:29][%cal Ba7a5,Ba5a4][%mdl 32]} 12. Rd1 {[%emt 0:07:15]} Nd7 {[%emt 0:02:34][%cal Bf6d7,Bd7c5,Bc5a4][%mdl 32]} 13. Rb1 {[%emt 0:08:29]} a4 {[%emt 0:00:49]} 14. Nb5 {[%emt 0:01:59]} Qb6 {[%emt 0:11:45]} 15. Be2 {[%emt 0:06:11]} Nc5 {[%emt 0:18:05]} 16. b4 {[%emt 0:12:10]} (16. f3 $14) 16... axb3 {[%emt 0:00:16]} 17. axb3 {[%emt 0:00:05]} Ra2 {[%emt 0:02:12]} 18. b4 {[%emt 0:06:08]} Na4 {[%emt 0:01:15] [#] ...Qxe3 is the strong threat.} 19. Bf1 {[%emt 0:01:45]} Qxe3 {[%emt 0:10:59]} 20. Bxe3 {[%emt 0:00:06]} Rc2 {[%emt 0:01:24]} 21. Rd2 {[%emt 0:05:09]} Rxd2 {[%emt 0:02:06]} 22. Bxd2 {[%emt 0:00:02]} Rc8 {[%emt 0:01:19]} 23. Rc1 {[%emt 0:03:41]} Nb6 {[%emt 0:06:15]} 24. c5 {[%emt 0:04:04]} dxc5 {[%emt 0:00:07]} 25. bxc5 {[%emt 0:00:03]} Nd7 {[%emt 0:00:20]} 26. Be3 {[%emt 0:00:05]} Nf6 {[%emt 0:04:53]} 27. f3 {[%emt 0:01:02]} Rd8 {[%emt 0:00:33]} 28. Rb1 {[%emt 0:02:03]} h5 {[%emt 0:01:50] Weighted Error Value: White=0.13 (very precise) /Black=0.10 (very precise) .  Mistake:       	White=2     	Black=1      Inaccurate:     	---       	Black=3      OK:         	White=5     	Black=11     Best:        	---       	Black=1} (28... Nd7 $11 {keeps the balance.}) 1/2-1/2

[Event "US Masters 2024"]
[Site "Charlotte"]
[Date "2024.11.28"]
[Round "1.18"]
[White "Wan, Joseph"]
[Black "Kevlishvili, Robby"]
[Result "0-1"]
[ECO "B51"]
[WhiteElo "2184"]
[BlackElo "2556"]
[Annotator "TA"]
[PlyCount "136"]
[EventDate "2024.09.23"]
[EventType "swiss"]
[EventCountry "USA"]
[SourceTitle "playchess.com"]
[Source "ChessBase"]
[SourceQuality "1"]
[TimeControl "5400+30"]

{[%evp 33,136,0,0,0,0,0,44,22,27,-12,-22,-25,0,0,0,-50,-31,-33,-19,-17,0,-16,-8,-12,-5,-39,-25,-87,-47,-77,-70,-80,-77,-76,-80,-119,-120,-129,-135,-132,-103,-160,-156,-161,-152,-166,-191,-199,-187,-201,-167,-168,-149,-168,-158,-75,-36,-49,-25,-34,-27,-19,-8,-8,0,0,0,0,0,0,0,0,0,0,0,0,0,0,0,0,8,8,105,154,502,0,61,0,0,0,0,0,0,0,0,0,0,-8,-8,-884,-811,-4627,-4452,-2112,-2053]} 1. e4 {[%emt 0:00:03]} c5 {[%emt 0:00:18]} 2. Nf3 {[%emt 0:00:35]} d6 {[%emt 0:00:07]} 3. Bb5+ {[%emt 0:00:13]} Nd7 {[%emt 0:00:07]} 4. O-O {[%emt 0:00:15]} a6 {[%emt 0:00:17]} 5. Bd3 {[%emt 0:00:06]} g6 {[%emt 0:00:18]} 6. Re1 {[%emt 0:02:46] B51: Sicilian: Moscow Variation (3 Bb5+) without 3...Bd7.} Ngf6 {[%emt 0:01:05]} 7. c3 {[%emt 0:00:15]} b5 {[%emt 0:00:34]} 8. Bc2 {[%emt 0:01:24] 8.a4 deserves study.} Bb7 {[%emt 0:00:55]} 9. d4 {[%emt 0:00:33]} cxd4 {[%emt 0:00:06]} 10. cxd4 {[%emt 0:00:05]} Bg7 {[%emt 0:00:05]} 11. a4 {[%emt 0:07:25]} O-O {[%emt 0:02:06]} 12. Qe2 {[%emt 0:03:23]} Qb8 $146 {[%emt 0:05:30]} ({Predecessor:} 12... bxa4 13. Rxa4 e5 14. dxe5 dxe5 15. Be3 Qe7 16. Nc3 Nh5 17. Nd5 Bxd5 {½-½ Gharamian,T (2654)-Edouard,R (2636) Cap d'Agde Karpov qual 4th rapid 2015 (11)}) 13. Nbd2 {[%emt 0:06:31]} e5 {[%emt 0:13:03]} 14. dxe5 {[%emt 0:06:18]} Nxe5 {[%emt 0:05:19]} 15. Nxe5 {[%emt 0:04:02]} dxe5 {[%emt 0:00:09]} 16. Nb3 {[%emt 0:04:42]} Bc6 {[%emt 0:09:15]} 17. Nc5 {[%emt 0:07:22]} Rc8 {[%emt 0:04:35]} 18. Be3 {[%emt 0:03:16]} Bf8 {[%emt 0:03:40]} 19. Qf3 {[%emt 0:07:14]} Nh5 {[%emt 0:10:19]} 20. Bb3 {[%emt 0:03:51]} Nf4 {[%emt 0:04:18]} 21. Nd3 {[%emt 0:07:59]} (21. a5 $5) 21... bxa4 {[%emt 0:02:57]} 22. Nxe5 {[%emt 0:08:55]} Qxb3 {[%emt 0:01:59]} 23. Qxf4 {[%emt 0:02:00]} Bg7 {[%emt 0:02:05]} 24. Bd4 {[%emt 0:06:50]} ({White should play} 24. Rad1 $11) 24... Be8 $1 $15 {[%emt 0:01:21]} 25. h4 {[%emt 0:07:53]} Qb8 {[%emt 0:05:23]} 26. g3 {[%emt 0:01:08]} f6 {[%emt 0:10:43]} 27. Ng4 {[%emt 0:01:45]} Qxf4 {[%emt 0:00:23]} 28. gxf4 {[%emt 0:00:03]} Kf7 {[%emt 0:01:28]} 29. e5 {[%emt 0:00:20]} fxe5 $1 {[%emt 0:00:36]} 30. fxe5 {[%emt 0:01:30]} (30. Nxe5+ $11 Kg8 31. Rac1) 30... Ke6 {[%emt 0:16:29]} 31. Nf6 {[%emt 0:07:18]} Rc4 {[%emt 0:00:30]} 32. Rad1 {[%emt 0:00:00]} Rd8 {[%emt 0:00:00]} 33. Nxe8 {[%emt 0:00:00]} Rxe8 {[%emt 0:00:00]} 34. Bc3 {[%emt 0:00:00]} Bf8 $1 {[%emt 0:00:00]} 35. Rd4 {[%emt 0:00:00]} Rxd4 {[%emt 0:00:00]} 36. Bxd4 {[%emt 0:00:00]} Rb8 {[%emt 0:00:00]} 37. Kg2 {[%emt 0:00:51]} (37. Kf1 $142) 37... Rb4 $17 {[%emt 0:00:00]} 38. Rd1 {[%emt 0:00:02]} h5 {[%emt 0:00:00]} 39. Kg3 {[%emt 0:00:48]} Be7 {[%emt 0:00:00]} 40. f3 {[%emt 0:00:14]} Rc4 {[%emt 0:00:00]} 41. Kh3 {[%emt 0:00:54]} Kf5 {[%emt 0:00:00]} 42. Kg3 {[%emt 0:00:25]} Bd8 {[%emt 0:00:00]} 43. f4 {[%emt 0:00:36]} Be7 {[%emt 0:00:00]} 44. Be3 {[%emt 0:01:38]} a3 {[%emt 0:00:00]} 45. bxa3 {[%emt 0:00:05]} Rc3 {[%emt 0:00:00]} 46. Kf2 $1 {[%emt 0:00:09]} Bxh4+ {[%emt 0:00:00]} 47. Ke2 $1 {[%emt 0:00:01]} Rxa3 {[%emt 0:00:09]} 48. Rd7 {[%emt 0:00:22]} a5 {[%emt 0:02:09]} 49. Kf3 {[%emt 0:02:55]} Rc3 {[%emt 0:03:23]} 50. Rf7+ {[%emt 0:00:00]} Ke6 {[%emt 0:00:05]} 51. Rg7 {[%emt 0:00:00]} Be7 {[%emt 0:00:28]} 52. Ke4 {[%emt 0:00:18]} (52. Rxg6+ Kf7 53. f5 Bc5 $15) 52... Rc4+ {[%emt 0:00:13]} 53. Kd3 {[%emt 0:00:05]} Rb4 {[%emt 0:01:35]} 54. Rxg6+ {[%emt 0:00:25]} Kf5 {[%emt 0:03:28]} 55. Rg7 {[%emt 0:01:02]} Rb3+ {[%emt 0:00:00]} 56. Kd4 {[%emt 0:01:04]} Bd8 {[%emt 0:00:00]} 57. Bd2 {[%emt 0:00:16]} h4 {[%emt 0:00:00]} (57... Rb2 $11 58. Bc3 Rb8) 58. Rf7+ $16 {[%emt 0:00:32]} Kg6 $2 {[%emt 0:02:00] [#]} (58... Kg4 $16 {is more resistant.}) 59. Rf8 $2 {[%emt 0:00:13]} (59. Rd7 $1 $18) 59... Be7 {[%emt 0:00:00]} ({Black should try} 59... Rb8 $1 $11 60. Rg8+ Kf5 (60... Kf7 61. Rg2 $11)) 60. Re8 {[%emt 0:01:35]} ({Better is} 60. f5+ $14 Kg7 61. Re8) 60... Kf7 {[%emt 0:00:00]} 61. Rh8 {[%emt 0:00:00]} Kg7 {[%emt 0:00:00]} 62. Rh5 {[%emt 0:00:25]} Kg6 {[%emt 0:00:00]} 63. Rh8 {[%emt 0:00:02]} a4 {[%emt 0:00:25]} 64. Ke4 {[%emt 0:00:13]} Kg7 {[%emt 0:00:04]} 65. Re8 {[%emt 0:00:24]} Kf7 {[%emt 0:00:04]} 66. Rh8 $2 {[%emt 0:01:17][%mdl 8192]} (66. Rc8 $11 a3 67. f5) 66... a3 $19 {[%emt 0:00:18]} 67. Rh7+ {[%emt 0:00:13]} Ke8 {[%emt 0:00:14]} 68. Rh8+ {[%emt 0:00:39] [#]} Bf8 $1 {[%emt 0:01:46]} 0-1